bitfinex-derivatives/quotes_SOLF0:USTF0_20220104
["timestamp","ask_amount","ask_price","bid_price","bid_amount"]
[1641275703275,9.038e-05,167.25,167.24,3.67618843]
[1641275703473,3.37870136,167.28,167.24,3.67618843]
[1641275703674,3.37870136,167.28,167.27,3.0]
[1641275704074,3.37870136,167.28,167.27,3.67618843]
[1641275706176,3.37870136,167.28,167.27,3.0]
[1641275706375,3.37870136,167.28,167.27,9.0]
[1641275706579,3.37870136,167.28,167.27,9.95574569]
[1641275709482,3.37870136,167.29,167.27,9.95574569]
[1641275709884,3.37870136,167.29,167.28,3.0]
[1641275710487,3.37870136,167.29,167.28,3.95543434]
[1641275710685,9.16,167.36,167.28,3.95543434]
[1641275711287,9.16,167.36,167.28,3.0]
[1641275711488,9.16,167.36,167.29,3.0]
[1641275711688,9.16,167.36,167.34,3.0]
[1641275712089,9.16,167.36,167.3,27.66479]
[1641275712290,3.37729096,167.35,167.3,27.66479]
[1641275712690,3.37729096,167.35,167.34,3.0]
[1641275712890,3.37729096,167.35,167.34,9.759]
[1641275713089,3.37729096,167.35,167.34,11.42313241]
[1641275714394,3.37729096,167.35,167.34,8.42313241]
[1641275714593,3.37729096,167.35,167.34,11.42313241]
[1641275715694,3.37729096,167.35,167.34,9.759]
[1641275717501,3.37729096,167.35,167.27,33.66479]
[1641275717799,7.74129096,167.35,167.32,4.22153431]
[1641275717998,27.66479,167.34,167.32,4.22153431]
[1641275718399,31.04208096,167.34,167.32,4.22153431]
[1641275718801,3.37729096,167.33,167.32,4.22153431]
[1641275719207,3.37729096,167.33,167.32,7.22153431]
[1641275719407,24.28682153,167.34,167.32,3.0]
[1641275720408,24.28682153,167.34,167.32,7.525]
[1641275721911,24.28682153,167.34,167.32,4.525]
[1641275722111,9.16,167.36,167.3,4.22153431]
[1641275722311,9.16,167.36,167.32,3.0]
[1641275722712,3.37775193,167.35,167.33,3.0]
[1641275723112,3.37775193,167.35,167.3,10.86753431]
[1641275723513,3.37775193,167.35,167.34,3.0]
[1641275723914,3.37775193,167.35,167.34,4.95719605]
[1641275726317,3.37775193,167.35,167.34,11.32219605]
[1641275728921,3.37775193,167.35,167.34,8.32219605]
[1641275729118,3.37775193,167.35,167.34,1.95719605]
[1641275729317,3.37775193,167.35,167.34,6.17873036]
[1641275729518,3.37775193,167.35,167.34,4.22153431]
[1641275731020,3.37775193,167.35,167.31,7.22153431]
[1641275731520,3.37775193,167.35,167.32,2.6332398]
[1641275732221,8.69421723,167.35,167.32,2.6332398]
[1641275732922,3.37775193,167.34,167.32,2.6332398]
[1641275733122,3.37775193,167.34,167.33,3.0]
[1641275733523,3.37775193,167.34,167.32,2.6332398]
[1641275733823,3.37775193,167.34,167.33,2.6332398]
[1641275734424,3.37775193,167.35,167.33,2.6332398]
[1641275735228,3.37775193,167.35,167.33,7.3852398]
[1641275735426,3.37775193,167.35,167.33,10.3852398]
[1641275735626,3.37775193,167.35,167.33,7.752]
[1641275736029,3.37775193,167.35,167.33,4.752]
[1641275736226,3.37775193,167.35,167.33,10.752]
[1641275736428,3.37775193,167.35,167.34,3.0]
[1641275737433,3.37775193,167.35,167.34,6.28372538]
[1641275737634,36.18228774,167.36,167.34,6.28372538]
[1641275737832,36.18228774,167.36,167.34,3.28372538]
[1641275738133,36.18228774,167.36,167.34,6.28372538]
[1641275738333,36.18228774,167.36,167.34,3.28372538]
[1641275738932,36.18228774,167.36,167.34,6.28372538]
[1641275739332,36.18228774,167.36,167.33,6.0]
[1641275739532,40.74428774,167.36,167.33,6.0]
[1641275740034,40.74428774,167.36,167.35,12.66525847]
[1641275740533,44.122133,167.36,167.35,12.66525847]
[1641275740733,39.560133,167.36,167.35,22.43825847]
[1641275740938,39.560133,167.36,167.35,19.43825847]
[1641275741834,39.560133,167.36,167.35,6.773]
[1641275742937,39.560133,167.36,167.33,39.77210112]
[1641275743538,3.37784526,167.35,167.34,2.97047012]
[1641275744340,9.49649476,167.35,167.34,2.97047012]
[1641275749947,9.49649476,167.35,167.33,6.0]
[1641275750348,6.1186495,167.35,167.33,6.0]
[1641275751151,6.1186495,167.35,167.34,3.34913709]
[1641275752953,6.1186495,167.35,167.33,6.0]
[1641275754354,39.89466234,167.35,167.33,6.0]
[1641275754954,33.77601284,167.34,167.33,6.0]
[1641275756157,6.1186495,167.35,167.33,6.0]
[1641275756556,6.1186495,167.35,167.27,65.10598645]
[1641275756755,39.89466234,167.35,167.3,3.0]
[1641275757256,39.89466234,167.35,167.31,2.75544881]
[1641275757460,33.77601284,167.34,167.31,2.75544881]
[1641275758555,12.63090525,167.32,167.31,2.75544881]
[1641275760459,40.29569525,167.32,167.31,2.75544881]
[1641275760857,40.29569525,167.32,167.31,5.75544881]
[1641275761058,12.63090525,167.32,167.31,5.75544881]
[1641275761260,12.63090525,167.33,167.31,5.75544881]
[1641275761757,12.63090525,167.33,167.32,5.75544881]
[1641275762358,48.81319299,167.36,167.32,5.75544881]
[1641275763058,48.81319299,167.36,167.33,2.75544881]
[1641275763458,48.81319299,167.36,167.29,2.75544881]
[1641275763658,48.81319299,167.36,167.34,3.0]
[1641275763960,48.81319299,167.36,167.35,2.75544881]
[1641275766564,52.19026942,167.36,167.35,2.75544881]
[1641275766963,39.55936417,167.36,167.35,2.75544881]
[1641275767166,45.85229529,167.36,167.31,4.22128645]
[1641275767761,42.47521886,167.36,167.31,4.22128645]
[1641275767963,12.66390091,167.34,167.3,4.22128645]
[1641275768166,12.66390091,167.34,167.33,3.0]
[1641275768463,12.66390091,167.34,167.32,2.20374364]
[1641275768663,16.04106328,167.34,167.33,2.20374364]
[1641275769165,6.328e-05,167.34,167.33,11.199]
[1641275769364,6.29293112,167.35,167.33,11.199]
[1641275769564,3.112e-05,167.35,167.33,13.40274364]
[1641275769964,3.112e-05,167.35,167.33,8.199]
[1641275770166,8.51749774,167.36,167.33,8.199]
[1641275770167,33.77601284,167.38,167.34,6.0]
[1641275770466,60.2172,167.44,167.37,3.0]
[1641275770666,159.18080284,167.45,167.42,3.0]
[1641275770865,3.37588106,167.43,167.42,8.807]
[1641275771267,3.37588106,167.44,167.42,12.02238011]
[1641275771566,3.37588106,167.44,167.42,9.02238011]
[1641275771768,3.37588106,167.44,167.42,5.807]
[1641275773467,37.1518939,167.44,167.42,5.807]
[1641275773667,37.1518939,167.44,167.38,64.9678]
[1641275773868,3.37588106,167.43,167.37,9.52341631]
[1641275774269,3.37588106,167.43,167.38,2.81531115]
[1641275774969,3.37588106,167.43,167.38,7.03472746]
[1641275775870,3.37588106,167.44,167.39,2.81531115]
[1641275776268,3.37588106,167.44,167.4,4.21941631]
[1641275776870,3.37588106,167.44,167.41,2.81531115]
[1641275777070,3.37588106,167.44,167.41,9.37831115]
[1641275777272,3.37588106,167.44,167.43,3.0]
[1641275777870,3.37588106,167.44,167.43,2.81531115]
[1641275778172,3.37588106,167.44,167.43,3.0]
[1641275778771,3.37588106,167.44,167.43,5.81531115]
[1641275779673,8.74,167.45,167.43,5.81531115]
[1641275779972,8.74,167.45,167.43,3.0]
[1641275780274,1.13157602,167.44,167.43,3.0]
[1641275780872,1.13157602,167.44,167.43,6.37539674]
[1641275782076,8.74,167.45,167.43,6.37539674]
[1641275782479,8.74,167.45,167.43,3.37539674]
[1641275782875,8.74,167.45,167.44,3.37539674]
[1641275783779,11.55607706,167.45,167.43,3.0]
[1641275783980,11.55607706,167.45,167.4,6.37539674]
[1641275784180,8.74,167.45,167.44,3.37539674]
[1641275784581,8.74,167.45,167.4,6.37539674]
[1641275784880,8.74,167.45,167.41,3.37539674]
[1641275786781,8.74,167.45,167.41,3.0]
[1641275787185,8.74,167.45,167.42,3.37539674]
[1641275787782,8.74,167.45,167.42,7.92339674]
[1641275787983,8.74,167.45,167.43,3.0]
[1641275788484,8.74,167.45,167.44,3.37539674]
[1641275788985,0.08,167.46,167.44,6.37539674]
[1641275789185,0.08,167.46,167.45,3.0]
[1641275789384,0.08,167.46,167.45,6.37539674]
[1641275794286,0.08,167.46,167.45,3.37539674]
[1641275796189,4.08,167.46,167.45,3.37539674]
[1641275796390,10.831,167.46,167.42,4.21941631]
[1641275796790,27.66479,167.44,167.42,4.21941631]
[1641275796989,27.66479,167.44,167.42,1e-08]
[1641275797191,27.66479,167.44,167.41,1e-08]
[1641275797592,27.66479,167.44,167.41,2.92223043]
[1641275797791,27.66479,167.44,167.41,5.92223043]
[1641275797993,27.66479,167.44,167.41,3.00000001]
[1641275798194,27.66479,167.44,167.36,2.92223042]
[1641275798399,27.66479,167.44,167.42,2.92223042]
[1641275799396,3.37567744,167.43,167.42,2.92223042]
[1641275802101,3.37567744,167.43,167.41,2.92223042]
[1641275802701,3.37567744,167.43,167.39,3.0]
[1641275802901,27.66479,167.41,167.4,2.92276967]
[1641275803502,40.31521198,167.41,167.4,2.92276967]
[1641275804103,43.69129628,167.41,167.4,2.92276967]
[1641275804301,32.24038921,167.41,167.4,2.92276967]
[1641275804901,38.04338921,167.41,167.37,3.0]
[1641275805102,38.04338921,167.41,167.33,12.65042198]
[1641275805301,34.66730491,167.41,167.34,3.0]
[1641275805505,34.66730491,167.41,167.35,3.0]
[1641275805702,97.14930491,167.41,167.33,12.65042198]
[1641275805903,97.14930491,167.41,167.35,3.0]
[1641275805904,12.65042198,167.39,167.35,3.0]
[1641275806802,3.37658221,167.38,167.36,1.4619191]
[1641275807603,3.37658221,167.38,167.37,3.0]
[1641275807803,3.37658221,167.38,167.37,8.193]
[1641275808004,3.37658221,167.38,167.37,9.6549191]
[1641275808206,4.57609712,167.38,167.37,9.6549191]
[1641275808405,1.19951491,167.38,167.37,9.6549191]
[1641275809005,1.19951491,167.4,167.37,9.6549191]
[1641275809208,1.19951491,167.4,167.39,3.0]
[1641275809809,1.19951491,167.4,167.39,4.4619191]
[1641275810713,1.19951491,167.4,167.39,1.4619191]
[1641275810914,1.19951491,167.4,167.33,12.65042198]
[1641275811113,1.19951491,167.4,167.31,61.5647]
[1641275811114,1.19951491,167.4,167.36,3.0]
[1641275811315,1.19951491,167.4,167.32,12.65042198]
[1641275811514,1.19951491,167.4,167.39,3.0]
[1641275811717,13.84993689,167.4,167.39,3.0]
[1641275812216,13.84993689,167.4,167.39,3.99198443]
[1641275813017,13.84993689,167.4,167.39,0.99198443]
[1641275813415,1.19951491,167.42,167.39,0.99198443]
[1641275814016,12.65042198,167.4,167.39,0.99198443]
[1641275815216,12.65042198,167.4,167.39,3.99198443]
[1641275815816,13.84993689,167.42,167.39,3.99198443]
[1641275816016,13.84993689,167.42,167.4,3.0]
[1641275816216,13.84993689,167.42,167.4,3.99198443]
[1641275816619,13.84993689,167.42,167.41,0.99198443]
[1641275817019,13.84993689,167.42,167.36,0.99198443]
[1641275817420,1.19951491,167.42,167.41,3.0]
[1641275817823,1.19951491,167.42,167.41,3.99198443]
[1641275818222,13.84993689,167.43,167.41,3.99198443]
[1641275818622,13.84993689,167.43,167.42,0.99198443]
[1641275819622,13.84993689,167.43,167.39,3.0]
[1641275819826,19.37493689,167.43,167.39,3.0]
[1641275820824,1.19951491,167.42,167.39,3.0]
[1641275821026,1.19951491,167.42,167.4,0.78368974]
[1641275821425,1.19951491,167.42,167.36,0.78368974]
[1641275822327,1.19951491,167.42,167.39,3.0]
[1641275822827,1.19951491,167.42,167.4,0.78368974]
[1641275823126,13.84993689,167.43,167.4,0.78368974]
[1641275823328,12.65042198,167.42,167.4,0.78368974]
[1641275824028,12.65042198,167.42,167.37,0.78368974]
[1641275824228,13.84993689,167.43,167.41,3.0]
[1641275824833,12.65042198,167.42,167.41,3.0]
[1641275825432,12.65042198,167.42,167.41,3.78378977]
[1641275828836,12.65042198,167.42,167.41,0.78378977]
[1641275829038,12.65042198,167.42,167.39,3.0]
[1641275829239,12.65042198,167.42,167.35,64.0032]
[1641275829436,12.65042198,167.42,167.38,3.0]
[1641275830439,12.65042198,167.42,167.39,0.67525462]
[1641275830637,12.65042198,167.4,167.39,0.67525462]
[1641275831739,12.65042198,167.4,167.38,3.0]
[1641275833143,12.65042198,167.39,167.38,3.0]
[1641275833741,12.65042198,167.39,167.38,3.6752869]
[1641275834742,12.65042198,167.39,167.38,0.6752869]
[1641275835142,12.65042198,167.39,167.36,0.6752869]
[1641275835544,12.65042198,167.39,167.34,0.6752869]
[1641275836146,12.65042198,167.39,167.35,2.99781585]
[1641275836646,12.65042198,167.39,167.36,0.6752869]
[1641275836945,12.65042198,167.39,167.38,3.0]
[1641275837743,12.65042198,167.39,167.38,3.6752869]
[1641275838144,12.65042198,167.42,167.38,6.67310275]
[1641275838547,12.65042198,167.42,167.39,0.6752869]
[1641275839448,12.65042198,167.42,167.37,0.6752869]
[1641275839850,3.37585684,167.41,167.37,0.6752869]
[1641275840252,3.37585684,167.41,167.36,0.6752869]
[1641275840654,1.19951491,167.4,167.38,2.99796491]
[1641275841153,12.65819734,167.42,167.39,0.6752869]
[1641275841554,3.37579288,167.41,167.38,0.6752869]
[1641275842358,1.22142278,167.4,167.36,0.6752869]
[1641275842554,1.22142278,167.4,167.39,3.0]
[1641275842855,4.59721566,167.4,167.39,3.6752869]
[1641275843056,3.37579288,167.4,167.39,3.6752869]
[1641275843656,4.59715657,167.4,167.39,3.6752869]
[1641275844055,4.59715657,167.4,167.39,0.6752869]
[1641275844255,3.37579288,167.4,167.39,3.6752869]
[1641275844656,3.37579288,167.42,167.39,3.6752869]
[1641275844958,3.37579288,167.42,167.4,0.6752869]
[1641275845355,16.03388324,167.42,167.4,0.6752869]
[1641275846061,3.37579288,167.41,167.4,0.6752869]
[1641275846858,3.37579288,167.42,167.4,0.6752869]
[1641275847258,3.37579288,167.42,167.41,3.0]
[1641275847660,3.37579288,167.43,167.41,3.6752869]
[1641275847958,3.37579288,167.43,167.41,0.6752869]
[1641275848159,3.37579288,167.43,167.42,0.6752869]
[1641275848360,16.01948277,167.43,167.42,0.6752869]
[1641275848658,16.01948277,167.43,167.35,0.6752869]
[1641275848862,16.01948277,167.43,167.39,3.0]
[1641275849061,3.37579288,167.42,167.35,0.6752869]
[1641275849564,3.37579288,167.42,167.36,2.99468195]
[1641275849962,3.37579288,167.42,167.39,3.0]
[1641275850162,3.37579288,167.42,167.37,0.6752869]
[1641275850366,3.37579288,167.42,167.4,0.6752869]
[1641275850769,3.37579288,167.42,167.37,0.6752869]
[1641275850968,3.37579288,167.42,167.38,2.99468195]
[1641275851370,3.37579288,167.42,167.39,0.6752869]
[1641275851768,3.37579288,167.43,167.39,0.6752869]
[1641275851969,3.37579288,167.43,167.4,3.0]
[1641275852769,3.37579288,167.43,167.41,0.6752869]
[1641275853972,16.01948277,167.43,167.4,0.6752869]
[1641275854370,3.37579288,167.42,167.35,0.6752869]
[1641275854572,3.37579288,167.42,167.38,3.0]
[1641275855271,3.37579288,167.43,167.39,0.6752869]
[1641275856675,16.01948277,167.43,167.39,0.6752869]
[1641275857176,3.37579288,167.42,167.39,4.89485144]
[1641275857874,3.37579288,167.42,167.4,0.6752869]
[1641275859276,12.64368989,167.41,167.4,0.6752869]
[1641275859675,16.01948277,167.41,167.38,0.6752869]
[1641275859876,3.37579288,167.41,167.38,4.89485144]
[1641275860076,3.37579288,167.4,167.38,4.89485144]
[1641275860477,3.37579288,167.41,167.39,0.6752869]
[1641275863079,3.37579288,167.41,167.4,3.0]
[1641275863278,3.37579288,167.41,167.39,0.6752869]
[1641275863680,3.37579288,167.41,167.39,4.89485144]
[1641275864183,3.37579288,167.42,167.4,0.6752869]
[1641275864380,3.37579288,167.42,167.39,4.21956454]
[1641275864581,16.01948277,167.42,167.38,4.21956454]
[1641275865282,12.64368989,167.41,167.37,4.21956454]
[1641275865485,12.64368989,167.41,167.38,3.0]
[1641275865682,3.37628393,167.4,167.38,3.67525679]
[1641275865882,9.13128393,167.4,167.38,0.67525679]
[1641275866182,9.13128393,167.4,167.39,0.67525679]
[1641275866585,9.13128393,167.4,167.38,0.67525679]
[1641275866982,3.37628393,167.39,167.36,0.67525679]
[1641275867686,3.37628393,167.39,167.38,3.0]
[1641275868384,3.37628393,167.39,167.38,3.67525679]
[1641275869488,3.37628393,167.41,167.38,3.67525679]
[1641275869688,3.37628393,167.41,167.38,0.67525679]
[1641275869887,3.37628393,167.41,167.39,0.67525679]
[1641275870290,3.37628393,167.42,167.39,0.67525679]
[1641275870491,16.01997382,167.42,167.39,0.67525679]
[1641275870892,16.01997382,167.42,167.39,3.67525679]
[1641275871289,45.40279,167.44,167.39,3.67525679]
[1641275871290,3.37628393,167.41,167.4,0.67525679]
[1641275871588,3.37628393,167.43,167.4,0.67525679]
[1641275872190,3.37628393,167.43,167.38,3.0]
[1641275872590,3.37628393,167.43,167.39,0.67525679]
[1641275872991,3.37628393,167.43,167.37,0.67525679]
[1641275873190,16.01997382,167.43,167.37,0.67525679]
[1641275873589,16.01997382,167.43,167.38,3.0]
[1641275873789,16.01997382,167.43,167.36,4.21956454]
[1641275873790,5.97532192,167.39,167.33,12.65042198]
[1641275873991,4.0,167.34,167.33,2.198e-05]
[1641275874391,5.851,167.35,167.33,2.198e-05]
[1641275874793,5.851,167.35,167.31,3.0]
[1641275875293,3.37727806,167.34,167.32,0.67545561]
[1641275875494,3.37727806,167.34,167.33,3.0]
[1641275875695,27.66479,167.36,167.33,3.0]
[1641275876094,4.75080814,167.35,167.34,0.67545561]
[1641275877094,4.75080814,167.35,167.29,0.67545561]
[1641275877495,3.37701848,167.34,167.29,0.67545561]
[1641275877694,3.37701848,167.34,167.33,3.0]
[1641275878096,4.75080814,167.34,167.33,3.67545561]
[1641275878394,1.37378966,167.34,167.33,3.67545561]
[1641275879194,1.37378966,167.35,167.33,3.67545561]
[1641275879394,1.37378966,167.35,167.33,0.67545561]
[1641275881999,1.37378966,167.35,167.3,0.67545561]
[1641275882198,7.54478966,167.35,167.32,3.0]
[1641275882698,7.54478966,167.35,167.33,0.67545561]
[1641275883099,1.37378966,167.34,167.33,3.67545561]
[1641275883398,1.37378966,167.34,167.33,0.67545561]
[1641275884600,1.37378966,167.35,167.3,0.67545561]
[1641275886101,3.37702723,167.34,167.3,0.67545561]
[1641275886501,3.37702723,167.34,167.33,3.0]
[1641275886902,4.75081689,167.34,167.33,3.0]
[1641275887102,1.37378966,167.34,167.33,3.67545561]
[1641275887501,27.66479,167.36,167.33,3.67545561]
[1641275887905,3.37697583,167.35,167.34,0.67545561]
[1641275888204,4.75001863,167.35,167.34,0.67545561]
[1641275889002,4.75001863,167.35,167.34,3.67545561]
[1641275889202,4.75001863,167.35,167.34,3.0]
[1641275889803,4.75001863,167.35,167.34,3.67545561]
[1641275891606,4.75001863,167.35,167.34,0.67545561]
[1641275891805,4.75001863,167.35,167.34,3.0]
[1641275893411,4.75001863,167.35,167.29,64.0124]
[1641275893611,4.75001863,167.35,167.34,3.0]
[1641275894009,4.75001863,167.35,167.33,3.0]
[1641275894409,3.37697583,167.34,167.33,3.0]
[1641275894810,3.37697583,167.34,167.33,0.67540438]
[1641275895012,4.75001863,167.34,167.33,0.67540438]
[1641275895211,4.75001863,167.34,167.3,0.67540438]
[1641275895615,1.3730428,167.34,167.3,0.67540438]
[1641275895815,1.3730428,167.34,167.33,3.0]
[1641275896615,4.75004919,167.34,167.33,3.67540438]
[1641275897818,1.3730428,167.34,167.33,3.67540438]
[1641275898318,1.3730428,167.35,167.33,3.67540438]
[1641275898617,1.3730428,167.35,167.34,0.67540438]
[1641275899023,1.3730428,167.35,167.28,10.39690174]
[1641275899024,5.3730428,167.35,167.28,13.39690174]
[1641275899221,21.31244445,167.35,167.28,10.39690174]
[1641275899621,4.0,167.32,167.28,7.57690174]
[1641275899821,27.66479,167.29,167.28,3.0]
[1641275900324,27.66479,167.29,167.28,3.67562683]
[1641275900928,29.0378328,167.29,167.28,3.67562683]
[1641275903830,1.3730428,167.29,167.28,3.67562683]
[1641275904334,14.04008011,167.31,167.28,3.67562683]
[1641275904732,3.37805244,167.3,167.29,0.67562683]
[1641275906133,17.41813255,167.3,167.29,0.67562683]
[1641275906535,17.41813255,167.3,167.23,15.66703731]
[1641275906736,17.41813255,167.3,167.24,0.67564247]
[1641275907137,14.04008011,167.3,167.24,0.67564247]
[1641275907334,1.3730428,167.29,167.25,2.79096445]
[1641275907934,12.66703731,167.3,167.26,0.67564247]
[1641275908539,14.04008011,167.31,167.27,2.79096445]
[1641275908939,3.37817833,167.3,167.28,0.67564247]
[1641275909239,3.37817833,167.3,167.29,3.0]
[1641275909539,3.37817833,167.3,167.29,7.88]
[1641275909741,12.66703731,167.31,167.29,8.55564247]
[1641275910141,12.66703731,167.31,167.3,3.0]
[1641275910341,12.66703731,167.31,167.3,3.67564247]
[1641275910943,12.66703731,167.33,167.3,3.67564247]
[1641275911242,12.66703731,167.33,167.3,0.67564247]
[1641275911443,12.66703731,167.33,167.32,3.0]
[1641275911646,40.33182731,167.36,167.32,3.0]
[1641275911842,40.33182731,167.36,167.32,3.67564247]
[1641275912244,40.33182731,167.36,167.33,0.67564247]
[1641275912444,3.37733613,167.35,167.33,0.67564247]
[1641275914846,3.37733613,167.35,167.34,3.0]
[1641275915046,16.04437344,167.35,167.34,3.0]
[1641275915246,16.04437344,167.35,167.34,3.67564247]
[1641275916648,12.66703731,167.35,167.34,3.67564247]
[1641275917250,74.66403731,167.37,167.34,3.67564247]
[1641275917452,12.66703731,167.37,167.36,3.0]
[1641275917850,16.04387782,167.37,167.36,3.67564247]
[1641275920453,3.37684051,167.37,167.36,3.67564247]
[1641275921255,8.96,167.39,167.36,6.67564247]
[1641275921256,21.62703731,167.39,167.36,6.67564247]
[1641275921453,21.62703731,167.39,167.36,3.67564247]
[1641275921654,12.66703731,167.39,167.38,3.0]
[1641275921854,33.77601284,167.43,167.38,12.076]
[1641275922058,33.77601284,167.43,167.42,3.0]
[1641275922259,33.77601284,167.43,167.42,8.419]
[1641275922456,37.15148452,167.43,167.42,9.09464247]
[1641275922657,3.37547168,167.43,167.42,9.09464247]
[1641275923356,3.37547168,167.44,167.42,9.09464247]
[1641275923959,3.37547168,167.44,167.43,0.67564247]
[1641275925262,4.802718,167.44,167.43,0.67564247]
[1641275925859,4.802718,167.44,167.43,3.67564247]
[1641275935579,4.802718,167.44,167.43,7.94564247]
[1641275936683,3.37547168,167.44,167.43,7.94564247]
[1641275937583,8.88,167.46,167.43,3.67564247]
[1641275937983,8.88,167.46,167.43,3.0]
[1641275938486,8.88,167.46,167.39,3.0]
[1641275938684,8.88,167.46,167.44,0.67504333]
[1641275938883,3.37521665,167.45,167.44,0.67504333]
[1641275939184,3.37521665,167.45,167.44,3.0]
[1641275939584,3.37521665,167.45,167.44,3.67504333]
[1641275939785,3.37521665,167.45,167.44,0.67504333]
[1641275940585,4.68828934,167.45,167.42,4.89395523]
[1641275940987,3.37521665,167.44,167.43,0.67504333]
[1641275941486,4.68828934,167.44,167.43,0.67504333]
[1641275943692,1.31307269,167.44,167.43,0.67504333]
[1641275943890,1.31307269,167.44,167.43,7.79956027]
[1641275944794,1.31307269,167.44,167.43,3.58064837]
[1641275945096,8.88,167.46,167.43,6.58064837]
[1641275945294,27.66479,167.49,167.43,12.15064837]
[1641275945493,73.821,167.5,167.45,4.21844479]
[1641275945894,3.37480511,167.48,167.45,4.21844479]
[1641275946296,3.37480511,167.49,167.46,0.67504333]
[1641275946697,4.71843558,167.49,167.46,4.89348812]
[1641275947100,3.37480511,167.48,167.47,0.67504333]
[1641275947598,4.71843558,167.48,167.47,0.67504333]
[1641275954008,4.71843558,167.48,167.47,7.76823789]
[1641275955207,9.26043558,167.48,167.47,7.09319456]
[1641275955409,9.26043558,167.48,167.39,33.77210112]
[1641275955908,5.88563047,167.48,167.39,33.77210112]
[1641275956107,4.542,167.48,167.35,62.3242]
[1641275956511,27.66479,167.46,167.36,27.66479]
[1641275956707,27.66479,167.46,167.36,28.33985624]
[1641275956909,64.814,167.45,167.36,28.33985624]
[1641275957109,68.18933121,167.45,167.37,0.67506624]
[1641275957509,3.37533121,167.44,167.37,0.67506624]
[1641275957709,7.92533121,167.44,167.37,0.67506624]
[1641275958409,4.55,167.44,167.37,0.67506624]
[1641275959311,4.55,167.44,167.37,3.67506624]
[1641275959513,64.814,167.45,167.37,3.67506624]
[1641275959711,64.814,167.45,167.38,0.67506624]
[1641275960112,3.37544131,167.44,167.38,0.67506624]
[1641275961313,3.37544131,167.44,167.37,0.67506624]
[1641275965015,10.23438099,167.44,167.37,0.67506624]
[1641275965417,3.37544131,167.43,167.37,0.67506624]
[1641275965614,3.37544131,167.43,167.37,3.67506624]
[1641275965817,3.37544131,167.43,167.39,3.0]
[1641275966318,3.37544131,167.44,167.4,0.67506624]
[1641275967519,10.24672553,167.44,167.4,0.67506624]
[1641275967920,3.37544131,167.43,167.4,0.67506624]
[1641275969120,3.37544131,167.43,167.4,3.67506624]
[1641275969320,6.87128422,167.44,167.41,3.0]
[1641275969521,6.87128422,167.44,167.41,9.251]
[1641275969722,6.87128422,167.44,167.42,0.67506624]
[1641275969921,27.66479,167.46,167.42,0.67506624]
[1641275970122,27.66479,167.46,167.43,3.0]
[1641275970322,95.17071284,167.49,167.43,3.0]
[1641275970823,10.24206279,167.48,167.44,0.67506624]
[1641275971122,3.3746067,167.47,167.44,0.67506624]
[1641275975827,3.3746067,167.47,167.42,0.67506624]
[1641275976030,3.3746067,167.47,167.44,6.0]
[1641275976629,3.3746067,167.47,167.45,0.67506624]
[1641275977929,3.3746067,167.48,167.45,0.67506624]
[1641275978930,27.66479,167.47,167.45,0.67506624]
[1641275979129,33.31179,167.47,167.45,0.67506624]
[1641275979329,33.31179,167.47,167.44,6.0]
[1641275979831,6.85730891,167.46,167.44,6.0]
[1641275980631,6.85730891,167.46,167.45,0.67501877]
[1641275983339,6.85730891,167.46,167.44,6.0]
[1641275983540,12.32930891,167.46,167.44,6.0]
[1641275983843,12.32930891,167.46,167.37,61.0303]
[1641275984038,63.4901,167.45,167.37,61.0303]
[1641275984237,3.0,167.44,167.37,61.0303]
[1641275984437,3.0,167.44,167.38,0.67506551]
[1641275984638,9.85730891,167.44,167.38,0.67506551]
[1641275984838,27.66479,167.43,167.32,91.05945551]
[1641275985239,27.66479,167.43,167.33,3.0]
[1641275985442,27.66479,167.43,167.34,3.0]
[1641275985939,27.66479,167.43,167.33,3.67506551]
[1641275986140,12.65789718,167.41,167.35,0.67506551]
[1641275989644,12.65789718,167.41,167.34,0.67506551]
[1641275989843,12.65789718,167.41,167.34,3.67506551]
[1641275990043,12.65789718,167.41,167.34,0.67506551]
[1641275990243,12.65789718,167.41,167.36,3.0]
[1641275990844,12.65789718,167.41,167.37,0.67506551]
[1641275991245,12.65789718,167.41,167.34,0.67506551]
[1641275991644,12.65789718,167.41,167.34,3.67506551]
[1641275992044,12.65789718,167.41,167.35,3.0]
[1641275992246,12.65789718,167.41,167.35,3.67506551]
[1641275992746,12.65789718,167.41,167.36,0.67506551]
[1641275993548,12.65789718,167.4,167.36,0.67506551]
[1641275993749,12.65789718,167.4,167.36,6.0]
[1641275994249,12.65789718,167.41,167.37,0.67506551]
[1641275996849,12.65789718,167.41,167.37,5.11606551]